fUST/lending_fUST_20260120
["ID","MTS","AMOUNT","RATE_DAILY","PERIOD"]
[402723458,1768838539870,156.98,8.918e-05,2]
[402723459,1768838555097,-331.48209646,0.00010618,2]
[402723460,1768838557840,-177.9363484,0.00010618,2]
[402723461,1768838559923,-284.64728803,0.00010618,2]
[402723463,1768838591550,-159.23779811,0.00010618,2]
[402723464,1768838595865,-168.66691581,0.00010618,2]
[402723465,1768838598566,-300.0,0.00010618,2]
[402723466,1768838608351,157.28,8.994e-05,2]
[402723467,1768838653016,-552.82,0.00010512,2]
[402723469,1768838742626,155.25,9.523e-05,2]
[402723470,1768838810440,5663.13,0.0002739,120]
[402723471,1768838835586,291.67229508,0.00027397,120]
[402723496,1768839032366,-968.91284753,0.00010098,2]
[402723551,1768839038397,-2129.12289752,0.00010098,2]
[402723728,1768839040667,-3e-08,0.00010098,2]
[402723960,1768839077537,159.88,8.728e-05,2]
[402723961,1768839077944,191.86,9.077e-05,2]
[402723962,1768839078579,223.83,9.426e-05,2]
[402723963,1768839119800,1873.975475,0.00027397,120]
[402723964,1768839120105,1873.975475,0.00027397,120]
[402723965,1768839130412,3762.48205246,9.678e-05,2]
[402723966,1768839146941,155.59,8.674e-05,2]
[402723967,1768839147520,207.45,9.051e-05,2]
[402723968,1768839147786,259.31,9.428e-05,2]
[402723969,1768839148264,172.827673,0.00027397,120]
[402723970,1768839151956,159.015705,0.00027397,120]
[402723971,1768839161548,-311.17,9.805e-05,2]
[402723972,1768839161571,-118.66609155,9.937e-05,2]
[402723973,1768839175969,245.37981066,9.678e-05,2]
[402723974,1768839176552,-217.96019808,9.679e-05,2]
[402723975,1768839179252,-607.08730474,9.679e-05,2]
[402723976,1768839182507,-190.4260646,9.679e-05,2]
[402723977,1768839186119,-197.55720116,9.679e-05,2]
[402723978,1768839190383,-271.21151674,9.679e-05,2]
[402723979,1768839193606,-192.88672286,9.679e-05,2]
[402723980,1768839197583,-206.67935998,9.679e-05,2]
[402723981,1768839197996,1677.12900818,9.678e-05,2]
[402723982,1768839200342,-411.39720033,9.679e-05,2]
[402723983,1768839203826,-404.49846402,9.679e-05,2]
[402723984,1768839206268,-302.75978558,9.679e-05,2]
[402723985,1768839207842,-569.35902122,9.679e-05,2]
[402723986,1768839213769,3692.6691287,9.678e-05,2]
[402723987,1768839213797,1307.3308713,9.678e-05,2]
[402723988,1768839218822,159.92,9.046e-05,2]
[402723989,1768839219303,199.9,9.423e-05,2]
[402723990,1768839221534,5000.0,9.678e-05,2]
[402723991,1768839236711,5000.0,9.679e-05,2]
[402723992,1768839242572,300.0,9.678e-05,2]
[402723993,1768839245050,4700.01,9.679e-05,2]
[402723994,1768839245074,299.99,9.679e-05,2]
[402723995,1768839260269,5000.0,9.679e-05,2]
[402723996,1768839268076,4700.02,9.679e-05,2]
[402723997,1768839268102,299.98,9.679e-05,2]
[402723998,1768839269282,5000.0,9.679e-05,2]
[402724000,1768839284520,4700.03,9.679e-05,2]
[402724001,1768839284545,299.97,9.679e-05,2]
[402724002,1768839289745,222.21,8.693e-05,2]
[402724003,1768839290650,296.28,9.07e-05,2]
[402724004,1768839291105,370.35,9.448e-05,2]
[402724005,1768839292378,5000.0,9.679e-05,2]
[402724006,1768839302294,300.0,9.678e-05,2]
[402724007,1768839303151,1200.0,9.678e-05,2]
[402724008,1768839307612,2311.2,9.679e-05,2]
[402724009,1768839307636,2688.8,9.679e-05,2]
[402724010,1768839315417,3399.96224869,9.679e-05,2]
[402724011,1768839317094,1834.9131968,0.0002739,120]
[402724013,1768839330686,3911.24775131,9.679e-05,2]
[402724014,1768839330710,1088.75224869,9.679e-05,2]
[402724016,1768839352494,-1437.79,9.679e-05,2]
[402724017,1768839353294,5000.0,9.679e-05,2]
[402724018,1768839368626,188.27,8.651e-05,2]
[402724019,1768839369064,251.03,9.027e-05,2]
[402724020,1768839369477,313.78,9.403e-05,2]
[402724021,1768839375514,1654.37105819,9.679e-05,2]
[402724022,1768839444127,159.52,8.665e-05,2]
[402724023,1768839444519,212.69,9.041e-05,2]
[402724024,1768839444922,265.86,9.418e-05,2]
[402724025,1768839478028,500.0,9.678e-05,2]
[402724026,1768839483830,365.73669312,9.678e-05,2]
[402724027,1768839483857,260.05353989,9.678e-05,2]
[402724028,1768839483892,200.18695293,9.678e-05,2]
[402724029,1768839483926,500.0,9.678e-05,2]
[402724030,1768839483959,500.0,9.678e-05,2]
[402724031,1768839483996,515.21473532,9.678e-05,2]
[402724032,1768839655202,1249.99,0.00027397,120]
[402724033,1768839655465,1249.99,0.00027397,120]
[402724034,1768839655878,1249.99,0.00027397,120]
[402724035,1768839656309,1249.99,0.00027397,120]
[402724036,1768839656622,1249.99,0.00027397,120]
[402724037,1768839656839,1249.99,0.00027397,120]
[402724038,1768839660581,1249.99,0.00027397,120]
[402724039,1768839660841,1249.99,0.00027397,120]
[402724040,1768839661082,1249.99,0.00027397,120]
[402724041,1768839661326,1249.99,0.00027397,120]
[402724042,1768839661557,1249.99,0.00027397,120]
[402724043,1768839661812,1249.99,0.00027397,120]
[402724044,1768839662066,1249.99,0.00027397,120]
[402724045,1768839662332,1249.99,0.00027397,120]
[402724046,1768839662582,1249.99,0.00027397,120]
[402724047,1768839662829,1249.99,0.00027397,120]
[402724048,1768839663089,1249.99,0.00027397,120]
[402724049,1768839663328,1249.99,0.00027397,120]
[402724050,1768839663571,1249.99,0.00027397,120]
[402724051,1768839663808,1249.99,0.00027397,120]
[402724052,1768839664048,1249.99,0.00027397,120]
[402724053,1768839664333,1249.99,0.00027397,120]
[402724054,1768839664579,1249.99,0.00027397,120]
[402724055,1768839664824,1250.1100001,0.00027397,120]
[402724056,1768839683869,487.19899038,9.678e-05,2]
[402724057,1768839687191,248.70426543,9.678e-05,2]
[402724058,1768839722167,494.97043706,9.678e-05,2]
[402724059,1768839730795,607959.84261348,0.00027397,120]
[402724060,1768839750917,167.0,0.0002515,120]
[402724061,1768839752189,167.0,0.00026408,120]
[402724062,1768839772589,364187.70549495,0.00027397,120]
[402724063,1768839836644,-512.64112978,9.679e-05,2]
[402724064,1768839838791,-292.42548655,9.679e-05,2]
[402724065,1768839843279,-545.5228273,9.679e-05,2]
[402724066,1768839844005,1307866.42666144,0.00027397,120]
[402724067,1768839846617,-296.91157198,9.679e-05,2]
[402724068,1768839848424,512.64112978,9.679e-05,2]
[402724069,1768839849236,-203.64178857,9.679e-05,2]
[402724070,1768839854080,-200.99521863,9.679e-05,2]
[402724071,1768839855513,-208.23196804,9.679e-05,2]
[402724072,1768839856346,1539.49689303,9.679e-05,2]
[402724073,1768839858251,-156.33034166,9.679e-05,2]
[402724074,1768839861736,-368.9676843,9.679e-05,2]
[402724075,1768839864893,-208.01666853,9.679e-05,2]
[402724076,1768839866506,-313.95941398,9.679e-05,2]
[402724077,1768839868071,-286.26583423,9.679e-05,2]
[402724078,1768839869725,-314.43989022,9.679e-05,2]
[402724080,1768839871845,-348.19757911,9.679e-05,2]
[402724081,1768839873564,-178.51215727,9.679e-05,2]
[402724082,1768839875145,-152.44732311,9.679e-05,2]
[402724083,1768839878752,-300.84051962,9.679e-05,2]
[402724084,1768839879044,2382.92153734,9.679e-05,2]
[402724085,1768839880606,-155.02860412,9.679e-05,2]
[402724086,1768839886105,-151.80242089,9.679e-05,2]
[402724087,1768839888283,-469.910025,9.679e-05,2]
[402724088,1768839894159,152.44732311,9.679e-05,2]
[402724089,1768839901966,1077.58156963,9.679e-05,2]
[402724090,1768839911606,-395.96121924,9.679e-05,2]
[402724091,1768839913694,-452.9042016,9.679e-05,2]
[402724092,1768839915756,-179.17516074,9.679e-05,2]
[402724093,1768839917827,-272.3701998,9.679e-05,2]
[402724094,1768839924449,1128.5926261,9.679e-05,2]
[402724095,1768839924477,171.81815528,9.679e-05,2]
[402724097,1768840076565,-444.16987739,9.679e-05,2]
[402724098,1768840078174,-176.17981849,9.679e-05,2]
[402724099,1768840080176,-964.18357232,9.679e-05,2]
[402724100,1768840085765,-173.51716562,9.679e-05,2]
[402724101,1768840087818,-280.87189653,9.679e-05,2]
[402724102,1768840089911,-384.11,9.679e-05,2]
[402724103,1768840092158,-187.66332928,9.679e-05,2]
[402724104,1768840094967,-300.0,9.679e-05,2]
[402724105,1768840096944,-175.55982173,9.679e-05,2]
[402724106,1768840099019,-201.33372456,9.679e-05,2]
[402724107,1768840103845,207.73168815,9.579e-05,2]
[402724109,1768840142267,300.0,9.678e-05,2]
[402724113,1768840226600,-231.46878977,9.679e-05,2]
[402724120,1768840232423,-1919.4402395,9.679e-05,2]
[402724121,1768840232435,-2859.76356748,9.679e-05,2]
[402724122,1768840232446,-1495.92169305,9.679e-05,2]
[402724123,1768840232456,-504.07830695,9.679e-05,2]
[402724124,1768840232467,-18173.87372725,9.679e-05,2]
[402724125,1768840232477,-302.14059051,9.679e-05,2]
[402724126,1768840232486,-556.0,9.679e-05,2]
[402724127,1768840232495,-300.73,0.00010137,2]
[402724128,1768840232505,-180.21,0.00010187,2]
[402724129,1768840232515,-346.47930594,0.00010399,2]
[402724130,1768840232524,-174.0929858,0.00010399,2]
[402724131,1768840232534,-501.27284525,0.000104,2]
[402724132,1768840232546,-711.68915232,0.000104,2]
[402724133,1768840232555,-500.0,0.000104,2]
[402724134,1768840232564,-500.0,0.000104,2]
[402724136,1768840232574,-500.0,0.000104,2]
[402724139,1768840232585,-500.0,0.000104,2]
[402724141,1768840232594,-500.0,0.000104,2]
[402724143,1768840232603,-801.85354432,0.000104,2]
[402724145,1768840232614,-500.0,0.000104,2]
[402724147,1768840232623,-500.0,0.000104,2]
[402724149,1768840232632,-500.0,0.000104,2]
[402724151,1768840232642,-647.59110955,0.000104,2]
[402724153,1768840232651,-156.581,0.00010419,2]
[402724155,1768840232660,-378.0244005,0.000105,2]
[402724157,1768840232669,-185.0387158,0.000106,2]
[402724159,1768840232679,-225.26,0.00010611,2]
[402724161,1768840232688,-185.0387158,0.00010656,2]
[402724163,1768840232697,-153.0,0.00010656,2]
[402724165,1768840232707,-185.0387158,0.00010656,2]
[402724167,1768840232716,-153.0,0.00010656,2]
[402724169,1768840232725,-311.85701,0.00010685,2]
[402724171,1768840232735,-185.0387158,0.000107,2]
[402724173,1768840232744,-185.0387158,0.00010756,2]
[402724175,1768840232753,-1204.6818702,0.00010756,2]
[402724177,1768840232762,-571.2762689,0.00010756,2]
[402724179,1768840232771,-183.409459,0.000108,2]
[402724181,1768840232781,-185.0387158,0.000108,2]
[402724183,1768840232790,-185.0387158,0.000109,2]
[402724185,1768840232800,-185.0387158,0.000109,2]
[402724187,1768840232809,-306.0,0.000109,2]
[402724189,1768840232818,-185.0387158,0.000109,2]
[402724191,1768840232828,-153.0,0.000109,2]
[402724193,1768840232837,-185.0387158,0.000109,2]
[402724195,1768840232847,-185.0387158,0.000109,2]
[402724197,1768840232857,-583.3655867,0.000109,2]
[402724199,1768840232866,-270.31,0.00011036,2]
[402724201,1768840232876,-323.39571937,0.00011233,2]
[402724203,1768840232886,-315.36,0.0001146,2]
[402724205,1768840232896,-356.5258968,0.00011679,2]
[402724207,1768840232905,-892.70612712,0.00011707,2]
[402724209,1768840232914,-259.90342284,0.00011781,2]
[402724211,1768840232923,-1000.0,0.000118,2]
[402724213,1768840232932,-500.0,0.000118,2]
[402724215,1768840232941,-360.41,0.00011885,2]
[402724217,1768840232951,-405.46,0.00012309,2]
[402724219,1768840232960,-338.23,0.00012329,2]
[402724221,1768840232969,-281.86,0.00012329,2]
[402724223,1768840232978,-281.86,0.00012329,2]
[402724225,1768840232987,-187.91,0.00012329,2]
[402724227,1768840232997,-156.59,0.00012329,2]
[402724228,1768840233006,-782.98,0.00012329,2]
[402724229,1768840233015,-207.17492391,0.00012329,2]
[402724230,1768840233025,-445.44,0.0001236,2]
[402724231,1768840233035,-150.088,0.00012391,2]
[402724232,1768840233043,-150.028,0.00012391,2]
[402724233,1768840233053,-2148.0,0.00012446,2]
[402724234,1768840233062,-629.0,0.00012446,2]
[402724235,1768840233071,-1367.0,0.00012446,2]
[402724236,1768840233080,-202.512,0.00012446,2]
[402724237,1768840233090,-417.0,0.00012446,2]
[402724238,1768840233099,-450.51,0.00012733,2]
[402724239,1768840233108,-159.0,0.000129,2]
[402724240,1768840233117,-159.0,0.000129,2]
[402724241,1768840233126,-5316.06819834,0.000129,2]
[402724242,1768840233135,-499.99999901,0.00013,2]
[402724243,1768840233144,-414.90106998,0.00013273,2]
[402724244,1768840233154,-500.0,0.00013273,2]
[402724245,1768840233163,-159.0,0.000136,2]
[402724246,1768840233172,-159.0,0.000136,2]
[402724247,1768840233181,-1041.66666667,0.00013641,2]
[402724248,1768840233191,-410.91120309,0.00013679,2]
[402724249,1768840233201,-500.0,0.00013698,2]
[402724250,1768840233211,-488.59283817,0.00013698,2]
[402724251,1768840233221,-500.0,0.00013698,2]
[402724252,1768840233230,-500.0,0.00013698,2]
[402724253,1768840233240,-500.0,0.00013698,2]
[402724254,1768840233250,-500.0,0.00013698,2]
[402724255,1768840233260,-500.0,0.00013698,2]
[402724256,1768840233269,-550.2723993,0.00013698,2]
[402724257,1768840233279,-427.001343,0.00013699,2]
[402724258,1768840233288,-1000.0,0.00013699,2]
[402724259,1768840233297,-151.0,0.00013699,2]
[402724260,1768840233306,-500.0,0.00013699,2]
[402724261,1768840233315,-500.0,0.00013699,2]
[402724262,1768840233326,-500.0,0.00013699,2]
[402724263,1768840233335,-151.0,0.00013699,2]
[402724264,1768840233345,-610.2805492,0.00013877,2]
[402724265,1768840233355,-1183.2864306,0.00013877,2]
[402724266,1768840233364,-305.2005618,0.00013877,2]
[402724267,1768840233373,-301.8295101,0.00013877,2]
[402724268,1768840233383,-153.0,0.00013877,2]
[402724269,1768840233577,-473.35997162,0.000139,2]
[402724270,1768840233587,-6773.12654252,0.0001399,2]
[402724291,1768840238513,-1485.67731641,0.0001399,2]
[402724301,1768840238622,-544.79095787,0.0001399,2]
[402724433,1768840241153,-3e-08,0.0001399,2]
[402724434,1768840241165,-427.19815893,0.0001399,2]
[402724514,1768840269560,-343.38326697,0.0001385,2]
[402724515,1768840269570,-2765.70617312,0.0001399,2]
[402724516,1768840270462,500.0,9.678e-05,2]
[402724517,1768840270493,205.58765806,9.678e-05,2]
[402724518,1768840270525,500.0,9.678e-05,2]
[402724519,1768840270606,500.0,9.678e-05,2]
[402724520,1768840270640,577.95439373,9.678e-05,2]
[402724549,1768841431643,-465.60265351,0.00011106,2]
[402724550,1768841431655,-4534.39734649,0.00011106,2]
[402724551,1768841431664,-2480.9457684,0.00011218,2]
[402724552,1768841431673,-578.0,0.00011218,2]
[402724553,1768841431682,-289.61072408,0.00011275,2]
[402724554,1768841431691,-300.0,0.00012404,2]
[402724555,1768841431701,-629.0,0.00012405,2]
[402724556,1768841431710,-2147.0,0.00012405,2]
[402724557,1768841431720,-178.0,0.00012405,2]
[402724558,1768841431729,-417.0,0.00012405,2]
[402724559,1768841431738,-341.74065442,0.00013275,2]
[402724561,1768841431748,-1228.9754612,0.00013434,2]
[402724562,1768841431757,-153.0,0.000135,2]
[402724564,1768841431766,-446.3183593,0.000135,2]
[402724566,1768841431775,-153.0,0.00013578,2]
[402724568,1768841431784,-1041.66666667,0.00013633,2]
[402724570,1768841431793,-123.64054336,0.00013699,2]
[402724572,1768841431805,-89.86012764,0.00013699,2]
[402724575,1768841431814,-500.0,0.00013699,2]
[402724576,1768841431824,-487.46902618,0.00013699,2]
[402724577,1768841431835,-12.53097382,0.00013699,2]
[402724578,1768841431845,-500.0,0.00013699,2]
[402724579,1768841431855,-207.46902618,0.00013711,2]
[402724580,1768841431867,-387.6683919,0.00013711,2]
[402724581,1768841431877,-4651.55967353,0.000138,2]
[402724582,1768841431887,-162.380719,0.00013892,2]
[402724583,1768841431900,-168.3888056,0.00013892,2]
[402724584,1768841431913,-174.61919141,0.00013892,2]
[402724585,1768841431923,-181.08010149,0.00013892,2]
[402724586,1768841431932,-187.78006525,0.00013892,2]
[402724587,1768841431943,-194.72792766,0.00013892,2]
[402724588,1768841431952,-201.93286099,0.00013892,2]
[402724589,1768841431962,-209.40437684,0.00013892,2]
[402724590,1768841431973,-217.15233878,0.00013892,2]
[402724591,1768841431982,-50.01554755,0.00013892,2]
[402724599,1768841437652,-3065.74439699,0.00012471,2]
[402724600,1768841437663,-1776.13919511,0.00012471,2]
[402724601,1768841437673,-175.17142777,0.00013892,2]
[402724602,1768841437683,-233.51889341,0.00013892,2]
[402724603,1768841437692,-242.15909246,0.00013892,2]
[402724604,1768841437702,-251.11897888,0.00013892,2]
[402724606,1768841437711,-260.4103811,0.00013892,2]
[402724607,1768841437719,-270.0455652,0.00013892,2]
[402724609,1768841437728,-280.03725112,0.00013892,2]
[402724611,1768841437737,-290.39862941,0.00013892,2]
[402724613,1768841437746,-301.1433787,0.00013892,2]
[402724615,1768841437755,-242.53551416,0.00013899,2]
[402724617,1768841437764,-156.581,0.00013899,2]
[402724619,1768841437773,-53179.29437113,0.000139,2]
[402724829,1768841439850,-466124.23659936,0.000139,2]
[402724926,1768841445704,-724.76692147,0.000139,2]
[402724929,1768841674223,-534.33143105,0.00010531,2]
[402724974,1768842631721,-4465.66856895,0.00010003,2]
[402724976,1768842631731,-562.0,0.00010104,2]
[402724978,1768842631740,-291.23008864,0.00010258,2]
[402724980,1768842631750,-343.6515046,0.00012258,2]
[402724982,1768842631759,-1200.0,0.00012402,2]
[402724984,1768842631769,-300.0,0.00012403,2]
[402724986,1768842631778,-300.0,0.00012403,2]
[402724988,1768842631787,-300.0,0.00012403,2]
[402724990,1768842631796,-300.0,0.00012404,2]
[402724993,1768842631805,-1367.0,0.00012405,2]
[402724995,1768842631815,-417.0,0.00012405,2]
[402724997,1768842631824,-178.0,0.00012405,2]
[402724999,1768842631834,-4070.11471433,0.00013394,2]
[402725001,1768842631843,-169.77485991,0.00013493,2]
[402725003,1768842631853,-50000.0,0.00013494,2]
[402725005,1768842631862,-156.581,0.00013596,2]
[402725007,1768842631870,-385.47283019,0.00013642,2]
[402725041,1768842637945,-500.0,0.00013698,2]
[402725043,1768842637954,-500.0,0.00013698,3]
[402725045,1768842637963,-500.0,0.00013698,4]
[402725047,1768842637973,-500.0,0.00013699,2]
[402725049,1768842637982,-500.0,0.00013699,2]
[402725051,1768842637992,-396.75827872,0.0001371,2]
[402725053,1768842638002,-153.44825388,0.00013716,2]
[402725055,1768842638011,-150.13253503,0.00013716,2]
[402725057,1768842638021,-150.08360901,0.00013716,2]
[402725059,1768842638031,-70.25012232,0.00013716,2]
[402725061,1768842638043,-130.03459319,0.00013716,2]
[402725063,1768842638052,-283.95234514,0.00013716,2]
[402725065,1768842638062,-150.43,0.00013791,2]
[402725067,1768842638072,-500.0,0.00013798,5]
[402725069,1768842638081,-500.0,0.00013798,6]
[402725070,1768842638092,-500.0,0.00013798,7]
[402725072,1768842638101,-500.0,0.00013798,8]
[402725073,1768842638111,-500.0,0.00013798,9]
[402725075,1768842638121,-457.6193773,0.00013798,10]
[402725077,1768842638136,-42.3806227,0.00013798,10]
[402725079,1768842638146,-393.5662415,0.00013798,11]
[402725084,1768842638185,-106.4337585,0.00013798,11]
[402725086,1768842638194,-500.0,0.00013798,12]
[402725088,1768842638204,-500.0,0.00013798,13]
[402725090,1768842638214,-500.0,0.00013798,14]
[402725092,1768842638224,-526.99657286,0.00013798,15]
[402725093,1768842638233,-6554.9671223,0.00013799,2]
[402725096,1768842638247,-1374.81438009,0.00013799,2]
[402725308,1768842640525,-1583.88174809,0.00013799,2]
[402725310,1768842640537,-38378.93401764,0.00013799,2]
[402725427,1768842643772,-355.24997171,0.00013799,2]
[402725428,1768842643785,-1632.63,0.00013799,2]
[402725456,1768842646004,-4044.40435005,0.00013799,2]
[402725457,1768842646016,-6086.11498842,0.00013799,2]
[402725460,1768842646060,-453.0,0.00013799,2]
[402725705,1768843180726,-417.0,0.00012325,2]
[402725707,1768843180754,-265.7,0.00012329,2]
[402725709,1768843180783,-286.55232597,0.00012861,2]
[402725839,1768843188492,221.42,0.00012329,2]
[402725857,1768843657651,-417.0,0.00012325,2]
[402725858,1768843657678,-178.0,0.00012325,2]
[402725859,1768843657707,-285.44272292,0.00012326,2]
[402725860,1768843657735,-184.52,0.00012329,2]
[402725861,1768843657762,-153.76,0.00012329,2]
[402725862,1768843657791,-768.85,0.00012329,2]
[402725863,1768843657820,-594.0,0.00012329,2]
[402725864,1768843657848,-156.582,0.00012329,2]
[402725865,1768843657876,-151.0,0.00013386,2]
[402725866,1768843657905,-151.0,0.00013386,2]
[402725867,1768843657932,-151.0,0.00013386,2]
[402726007,1768843838045,-199.41,0.00011242,2]
[402726008,1768843838055,-578.0,0.00011242,2]
[402726009,1768843838066,-40.61365166,0.00012107,2]
[402726010,1768843838077,-225.25634834,0.00012107,2]
[402726011,1768843838087,-332.34,0.00012972,2]
[402726012,1768843838097,-231.52287382,0.00013294,2]
[402726022,1768843840368,-604.0,0.00013294,2]
[402726042,1768843843108,-500.70911447,0.00013294,2]
[402726046,1768843846051,-438.20543401,0.00013293,2]
[402726048,1768843846062,-5184.85238775,0.00013294,2]
[402726053,1768843846106,-396.61442172,0.00013294,2]
[402726059,1768844136847,-5000.0,0.00011257,2]
[402726060,1768844139569,-174.75,0.00011371,2]
[402726061,1768844139600,-289.60712029,0.00011808,2]
[402726062,1768844139629,-233.0,0.00012246,2]
[402726063,1768844139658,-291.25,0.00013121,2]
[402726064,1768844139687,-1200.0,0.00013192,2]
[402726065,1768844139717,-300.0,0.00013192,2]
[402726066,1768844139747,-300.0,0.00013193,2]
[402726067,1768844139780,-861.44538439,0.00013193,2]
[402726068,1768844142648,-2699.90499064,0.00013193,2]
[402726069,1768844142677,-500.0,0.00013273,2]
[402726070,1768844142708,-445.202766,0.00013286,2]
[402726071,1768844142734,-151.0,0.00013286,2]
[402726072,1768844142761,-154.86134986,0.00013286,2]
[402726073,1768844142787,-151.0,0.00013286,2]
[402726074,1768844142812,-151.0,0.00013286,2]
[402726075,1768844142837,-151.0,0.00013286,2]
[402726076,1768844142863,-151.0,0.00013286,2]
[402726077,1768844142889,-151.0,0.00013286,2]
[402726078,1768844142915,-151.0,0.00013286,2]
[402726079,1768844142940,-135.071787,0.00013286,2]
[402726080,1768844195815,-231.96,9.779e-05,2]
[402726081,1768844195839,-223.74935127,0.00010668,2]
[402726082,1768844271492,-210.47004235,9.803e-05,2]
[402726084,1768844551767,231.96,8.737e-05,2]
[402726085,1768844552670,463.92,9.531e-05,2]
[402726086,1768844600299,-556.0,9.7e-05,2]
[402726087,1768844600329,-296.94912021,0.00010013,2]
[402726088,1768844600549,-695.88,0.00010325,2]
[402726089,1768844600583,-927.83,0.00011119,2]
[402726090,1768844600612,-1159.79,0.00011914,2]
[402726091,1768844600642,-350.39996185,0.00012013,2]
[402726092,1768844600670,-417.0,0.00012255,2]
[402726093,1768844600698,-218.022,0.00012255,2]
[402726094,1768844602446,-1391.75,0.00012708,2]
[402726095,1768844602474,-300.0,0.00013185,2]
[402726096,1768844602506,-159.33365176,0.00013186,2]
[402726097,1768844602534,-500.0,0.00013226,2]
[402726098,1768844602563,-500.0,0.00013226,2]
[402726099,1768844602591,-300.21903695,0.00013226,2]
[402726100,1768844602620,-341.84945457,0.00013226,2]
[402726101,1768844602648,-500.0,0.00013226,2]
[402726102,1768844602677,-500.0,0.00013226,2]
[402726103,1768844602705,-500.0,0.00013226,2]
[402726104,1768844629292,286.95,9.385e-05,2]
[402726105,1768844708226,283.3,8.669e-05,2]
[402726106,1768844708616,566.59,9.457e-05,2]
[402726107,1768844790456,272.48,9.199e-05,2]
[402726109,1768844870442,300.54,9.184e-05,2]
[402726110,1768844950148,296.72,9.154e-05,2]
[402726111,1768845029214,292.94,9.156e-05,2]
[402726219,1768845038179,-585.88,9.988e-05,2]
[402726221,1768845038190,-284.00213857,0.00010437,2]
[402726223,1768845038199,-878.82,0.0001082,2]
[402726225,1768845038209,-1000.0,0.000111,5]
[402726227,1768845038219,-1171.76,0.00011653,2]
[402726229,1768845038227,-950.0,0.00012,5]
[402726231,1768845038235,-417.0,0.00012255,2]
[402726233,1768845038245,-178.0,0.00012255,2]
[402726235,1768845038254,-335.12252352,0.00012437,2]
[402726237,1768845038263,-1464.69,0.00012485,2]
[402726239,1768845038272,-500.0,0.00013171,2]
[402726241,1768845038282,-500.0,0.00013171,2]
[402726243,1768845038291,-500.0,0.00013171,2]
[402726244,1768845038301,-500.0,0.00013171,2]
[402726247,1768845038311,-500.0,0.00013171,2]
[402726248,1768845038321,-500.0,0.00013171,2]
[402726251,1768845038331,-500.0,0.00013171,2]
[402726252,1768845038341,-500.0,0.00013171,2]
[402726254,1768845038350,-500.0,0.00013171,2]
[402726256,1768845038360,-518.97524045,0.00013171,2]
[402726258,1768845038370,-500.0,0.00013171,2]
[402726260,1768845038380,-358.65938438,0.00013171,2]
[402726262,1768845038390,-342.75119578,0.00013171,2]
[402726264,1768845038398,-500.0,0.00013171,2]
[402726265,1768845038407,-500.0,0.00013171,2]
[402726267,1768845038417,-500.0,0.00013171,2]
[402726269,1768845038427,-500.0,0.00013171,2]
[402726271,1768845038436,-500.0,0.00013171,2]
[402726273,1768845038446,-284.49433223,0.00013171,2]
[402726275,1768845038456,-500.0,0.00013171,2]
[402726277,1768845038466,-500.0,0.00013171,2]
[402726279,1768845038476,-403.53801919,0.00013171,2]
[402726281,1768845038486,-500.0,0.00013171,2]
[402726283,1768845038496,-500.0,0.00013171,2]
[402726285,1768845038506,-500.0,0.00013171,2]
[402726287,1768845038515,-500.0,0.00013171,2]
[402726289,1768845038524,-500.0,0.00013171,2]
[402726291,1768845038534,-500.0,0.00013171,2]
[402726293,1768845038544,-500.0,0.00013171,2]
[402726295,1768845038557,-500.0,0.00013171,2]
[402726297,1768845038566,-500.0,0.00013171,2]
[402726299,1768845038576,-500.0,0.00013171,2]
[402726301,1768845038585,-500.0,0.00013171,2]
[402726303,1768845038594,-500.0,0.00013171,2]